[Event "European Rapid Championship 2021"]
[Site "Katowice"]
[Date "2021.12.18"]
[Round "6.30"]
[White "Grzesik, Gracjan"]
[Black "Kowalski, Igor"]
[Result "1/2-1/2"]
[ECO "A11"]
[WhiteElo "1992"]
[BlackElo "2295"]
[Annotator "ChessBase"]
[PlyCount "134"]
[EventDate "2021.12.18"]
[EventType "swiss"]
[EventCountry "POL"]
[SourceTitle "playchess.com"]
[Source "ChessBase"]
[SourceQuality "1"]
[TimeControl "900+10"]

1. c4 {[%emt 0:00:02]} c6 {[%emt 0:00:02]} 2. Nc3 {[%emt 0:00:17]} d5 {[%emt 0:
00:02]} 3. cxd5 {[%emt 0:00:46]} cxd5 {[%emt 0:00:01]} 4. d4 {[%emt 0:00:02]}
Nf6 {[%emt 0:00:02]} 5. Bf4 {[%emt 0:00:02]} Nc6 {[%emt 0:00:04]} 6. e3 {
[%emt 0:00:03]} a6 {[%emt 0:00:02]} 7. Bd3 {[%emt 0:00:06]} Bg4 {[%emt 0:00:02]
} 8. Nge2 {[%emt 0:00:09]} e6 {[%emt 0:00:08]} 9. O-O {[%emt 0:00:08]} Bd6 {
[%emt 0:00:15]} 10. f3 {[%emt 0:00:02]} Bh5 {[%emt 0:00:03]} 11. a3 {[%emt 0:
01:09]} O-O {[%emt 0:00:05]} 12. Bxd6 {[%emt 0:00:34]} Qxd6 {[%emt 0:00:01]}
13. Nf4 {[%emt 0:00:15]} Bg6 {[%emt 0:00:02]} 14. Nxg6 {[%emt 0:00:04]} hxg6 {
[%emt 0:00:03]} 15. f4 {[%emt 0:00:02]} b5 {[%emt 0:00:05]} 16. Rc1 {[%emt 0:
01:19]} Rfc8 {[%emt 0:00:03]} 17. Nb1 {[%emt 0:03:11]} Na5 {[%emt 0:00:19]} 18.
Nd2 {[%emt 0:01:26]} Nc4 {[%emt 0:03:02]} 19. Nxc4 {[%emt 0:01:44]} bxc4 {
[%emt 0:00:10]} 20. Bb1 {[%emt 0:00:03]} Rab8 {[%emt 0:00:07]} 21. Rf2 {
[%emt 0:00:19]} Rc7 {[%emt 0:01:10]} 22. g4 {[%emt 0:00:12]} Rcb7 {[%emt 0:01:
27]} 23. g5 {[%emt 0:00:02]} Nd7 {[%emt 0:00:15]} 24. Rcc2 {[%emt 0:01:32]} Rb3
{[%emt 0:00:05]} 25. Qc1 {[%emt 0:00:51]} Nb6 {[%emt 0:00:56]} 26. h4 {[%emt 0:
00:50]} Na4 {[%emt 0:00:16]} 27. Ba2 {[%emt 0:00:03]} Rd3 {[%emt 0:07:00]} 28.
Rh2 {[%emt 0:01:54]} Nb6 {[%emt 0:03:12]} 29. Bb1 {[%emt 0:01:37]} Rb3 {
[%emt 0:00:23]} 30. h5 {[%emt 0:01:13]} gxh5 {[%emt 0:00:25]} 31. g6 {[%emt 0:
00:01]} Na4 {[%emt 0:00:17]} 32. gxf7+ {[%emt 0:00:12]} Kxf7 {[%emt 0:00:02]}
33. Rcg2 {[%emt 0:00:03]} c3 {[%emt 0:00:11]} 34. Qc2 {[%emt 0:00:22]} Rxb2 {
[%emt 0:00:20]} 35. Qg6+ {[%emt 0:00:13]} Ke7 {[%emt 0:00:02]} 36. Qxg7+ {
[%emt 0:00:02]} Kd8 {[%emt 0:00:01]} 37. Bc2 {[%emt 0:00:18]} Qxa3 {[%emt 0:00:
22]} 38. Qf6+ {[%emt 0:00:08]} Kc7 {[%emt 0:00:13]} 39. Rg7+ Kb6 40. Qxe6+ Ka5
41. Qxd5+ {[%emt 0:00:18]} R8b5 {[%emt 0:00:04]} 42. Qd8+ {[%emt 0:00:24]} Nb6
{[%emt 0:00:01]} 43. Rhg2 {[%emt 0:00:10]} Qa1+ {[%emt 0:00:27]} 44. Kh2 {
[%emt 0:00:01]} Qc1 {[%emt 0:00:01]} 45. Bd3 {[%emt 0:00:16]} Rxg2+ {[%emt 0:
00:18]} 46. Rxg2 {[%emt 0:00:03]} Rb2 {[%emt 0:00:07]} 47. Be2 {[%emt 0:00:21]}
Qxe3 {[%emt 0:00:11]} 48. Qg5+ {[%emt 0:00:09]} Ka4 {[%emt 0:00:04]} 49. Bd1+ {
[%emt 0:00:04]} c2 {[%emt 0:00:38]} 50. Bxc2+ {[%emt 0:00:02]} Rxc2 {[%emt 0:
00:07]} 51. Rxc2 {[%emt 0:00:02]} Qxd4 {[%emt 0:00:01]} 52. Qe5 {[%emt 0:00:18]
} Qxe5 {[%emt 0:00:21]} 53. fxe5 {[%emt 0:00:01]} Nd5 {[%emt 0:00:01]} 54. Rd2
{[%emt 0:00:22]} Ne7 {[%emt 0:00:20]} 55. Rd7 {[%emt 0:00:06]} Nc6 {[%emt 0:00:
05]} 56. e6 {[%emt 0:00:18]} Kb5 {[%emt 0:00:01]} 57. Rd5+ {[%emt 0:00:11]} Kb4
{[%emt 0:00:19]} 58. Rd6 {[%emt 0:00:13]} Kc5 {[%emt 0:00:00]} 59. Rd7 {
[%emt 0:00:07]} a5 {[%emt 0:00:11]} 60. Kh3 {[%emt 0:00:16]} a4 {[%emt 0:00:08]
} 61. e7 {[%emt 0:00:10]} Nxe7 {[%emt 0:00:01]} 62. Rxe7 {[%emt 0:00:01]} Kb4 {
[%emt 0:00:06]} 63. Rb7+ {[%emt 0:00:01]} Kc3 {[%emt 0:00:01]} 64. Kh4 {
[%emt 0:00:04]} a3 {[%emt 0:00:01]} 65. Kxh5 {[%emt 0:00:01]} a2 {[%emt 0:00:
01]} 66. Ra7 {[%emt 0:00:02]} Kb2 {[%emt 0:00:01]} 67. Rxa2+ {[%emt 0:00:05]}
Kxa2 {[%emt 0:00:00]} 1/2-1/2

[Event "European Rapid Championship 2021"]
[Site "Katowice"]
[Date "2021.12.19"]
[Round "7.1"]
[White "Keinanen, Toivo"]
[Black "Brodowski, Piotr"]
[Result "1/2-1/2"]
[ECO "A41"]
[WhiteElo "2341"]
[BlackElo "2414"]
[Annotator "ChessBase"]
[PlyCount "137"]
[EventDate "2021.12.18"]
[EventType "swiss"]
[EventCountry "POL"]
[SourceTitle "playchess.com"]
[Source "ChessBase"]
[SourceQuality "1"]
[TimeControl "900+10"]

1. d4 {[%emt 0:00:00]} d6 {[%emt 0:00:06]} 2. Nf3 {[%emt 0:00:11]} g6 {[%emt 0:
00:03]} 3. e4 {[%emt 0:00:38]} Bg7 {[%emt 0:00:22]} 4. Be2 {[%emt 0:00:11]} Nf6
{[%emt 0:01:22]} 5. Nbd2 {[%emt 0:00:02]} O-O {[%emt 0:00:04]} 6. O-O {[%emt 0:
00:02]} Bg4 {[%emt 0:01:17]} 7. c3 {[%emt 0:01:23]} Nc6 {[%emt 0:01:39]} 8. Re1
{[%emt 0:04:14]} Bxf3 {[%emt 0:00:22]} 9. Bxf3 {[%emt 0:00:07]} e5 {[%emt 0:00:
02]} 10. Nc4 {[%emt 0:01:52]} Nd7 {[%emt 0:00:18]} 11. Be3 {[%emt 0:00:43]}
exd4 {[%emt 0:02:41]} 12. cxd4 {[%emt 0:00:01]} Qf6 {[%emt 0:00:01]} 13. d5 {
[%emt 0:01:11]} Nce5 {[%emt 0:04:07]} 14. Nxe5 {[%emt 0:00:05]} Qxe5 {[%emt 0:
00:02]} 15. Qb3 {[%emt 0:01:08]} b6 {[%emt 0:00:17]} 16. Rab1 {[%emt 0:00:49]}
Nc5 {[%emt 0:00:06]} 17. Qc2 {[%emt 0:00:32]} a5 {[%emt 0:00:01]} 18. Bd2 {
[%emt 0:01:28]} Rfe8 {[%emt 0:01:20]} 19. b3 {[%emt 0:00:12]} Qe7 {[%emt 0:02:
57]} 20. a3 {[%emt 0:00:34]} a4 {[%emt 0:00:04]} 21. b4 {[%emt 0:00:18]} Nb3 {
[%emt 0:00:02]} 22. Bc3 {[%emt 0:01:07]} Rac8 {[%emt 0:01:12]} 23. Bg4 {
[%emt 0:00:38]} Ra8 {[%emt 0:00:00]} 24. Rbd1 {[%emt 0:00:46]} h5 {[%emt 0:00:
29]} 25. Bf3 {[%emt 0:00:10]} Rac8 {[%emt 0:00:08]} 26. Bxg7 {[%emt 0:00:28]}
Kxg7 {[%emt 0:00:01]} 27. Re3 {[%emt 0:00:22]} Qe5 {[%emt 0:00:02]} 28. Qc3 {
[%emt 0:00:13]} Qxc3 {[%emt 0:00:18]} 29. Rxc3 {[%emt 0:00:00]} Re7 {[%emt 0:
00:04]} 30. g3 {[%emt 0:00:16]} Rce8 {[%emt 0:00:06]} 31. h4 {[%emt 0:00:22]}
Kf6 {[%emt 0:00:09]} 32. Bg2 {[%emt 0:00:09]} Kg7 {[%emt 0:00:14]} 33. Bf3 {
[%emt 0:00:06]} Kh6 {[%emt 0:00:07]} 34. Rc4 {[%emt 0:00:08]} Kg7 {[%emt 0:00:
34]} 35. Kg2 {[%emt 0:00:04]} Kf6 {[%emt 0:00:05]} 36. Rd3 {[%emt 0:00:13]} Ke5
{[%emt 0:00:15]} 37. Bd1 {[%emt 0:00:13]} b5 {[%emt 0:00:07]} 38. Rcc3 {
[%emt 0:00:15]} Kxe4 {[%emt 0:00:12]} 39. Bxb3 {[%emt 0:00:13]} axb3 {[%emt 0:
00:01]} 40. Rxb3 {[%emt 0:00:00]} f5 {[%emt 0:00:21]} 41. f4 {[%emt 0:00:16]}
c6 {[%emt 0:00:05]} 42. dxc6 d5 43. Rd1 {[%emt 0:00:24]} d4 {[%emt 0:00:05]}
44. Rbd3 {[%emt 0:00:09]} Rd8 {[%emt 0:00:01]} 45. Re1+ {[%emt 0:00:11]} Kxd3 {
[%emt 0:00:01]} 46. Rxe7 {[%emt 0:00:00]} Rc8 {[%emt 0:00:40]} 47. c7 {[%emt 0:
00:09]} Kc2 {[%emt 0:00:01]} 48. Re5 {[%emt 0:00:10]} Rxc7 {[%emt 0:00:16]} 49.
Rc5+ {[%emt 0:00:01]} Rxc5 50. bxc5 {[%emt 0:00:01]} d3 {[%emt 0:00:01]} 51. c6
{[%emt 0:00:01]} d2 52. c7 d1=Q 53. c8=Q+ Kb2 {[%emt 0:00:24]} 54. Qa6 {
[%emt 0:00:31]} Qe2+ {[%emt 0:00:32]} 55. Kg1 {[%emt 0:00:41]} Qe1+ {[%emt 0:
00:24]} 56. Kg2 {[%emt 0:00:01]} Qd2+ {[%emt 0:00:01]} 57. Kg1 {[%emt 0:00:15]}
Qd3 {[%emt 0:00:19]} 58. Kh2 {[%emt 0:00:09]} Ka2 {[%emt 0:00:10]} 59. Kg2 {
[%emt 0:00:21]} Qxa3 {[%emt 0:00:04]} 60. Qxb5 {[%emt 0:00:02]} Qb2+ {[%emt 0:
00:00]} 61. Qxb2+ {[%emt 0:00:03]} Kxb2 {[%emt 0:00:01]} 62. Kf2 {[%emt 0:00:
23]} Kc2 {[%emt 0:00:07]} 63. Ke2 {[%emt 0:00:05]} Kc3 {[%emt 0:00:02]} 64. Ke3
{[%emt 0:00:03]} Kc4 {[%emt 0:00:01]} 65. Ke2 {[%emt 0:00:08]} Kc3 {[%emt 0:00:
20]} 66. Ke3 {[%emt 0:00:01]} Kc4 {[%emt 0:00:24]} 67. Ke2 {[%emt 0:00:08]} Kd4
{[%emt 0:00:00]} 68. Kd2 {[%emt 0:00:03]} Ke4 {[%emt 0:00:01]} 69. Ke2 {
[%emt 0:00:01]} 1/2-1/2

[Event "European Rapid Championship 2021"]
[Site "Katowice"]
[Date "2021.12.19"]
[Round "7.1"]
[White "Lewtak, Dominik"]
[Black "Kalogeris, Ioannis"]
[Result "0-1"]
[ECO "D02"]
[WhiteElo "2165"]
[BlackElo "2357"]
[Annotator "NA"]
[PlyCount "58"]
[EventDate "2021.12.18"]
[EventType "swiss"]
[EventCountry "POL"]
[SourceTitle "playchess.com"]
[Source "ChessBase"]
[SourceQuality "1"]
[TimeControl "900+10"]

1. d4 {[%emt 0:00:02]} Nf6 {[%emt 0:01:15]} 2. Nf3 {[%emt 0:00:03]} d5 {
[%emt 0:00:35]} 3. Bf4 {[%emt 0:00:03]} Bf5 {[%emt 0:00:52]} 4. e3 {[%emt 0:00:
22]} e6 {[%emt 0:00:11]} 5. Nbd2 {[%emt 0:00:03]} Be7 {[%emt 0:01:09]} 6. Be2 {
[%emt 0:00:03]} Nh5 {[%emt 0:00:37]} 7. Bg3 {[%emt 0:00:16]} O-O {[%emt 0:00:
53]} 8. O-O {[%emt 0:00:07]} Nxg3 {[%emt 0:00:04]} 9. hxg3 {[%emt 0:00:02]} c5
{[%emt 0:00:07]} 10. c3 {[%emt 0:00:12]} Nc6 {[%emt 0:00:08]} 11. a4 {[%emt 0:
01:23]} c4 {[%emt 0:01:43]} 12. Ne5 {[%emt 0:01:12]} Nxe5 {[%emt 0:00:15]} 13.
dxe5 {[%emt 0:00:01]} Qc7 {[%emt 0:00:02]} 14. g4 {[%emt 0:01:00]} Bg6 {
[%emt 0:01:02]} 15. f4 {[%emt 0:00:38]} Bc5 {[%emt 0:00:24]} 16. Rf3 {[%emt 0:
03:16]} Qb6 {[%emt 0:01:12]} 17. Kf2 {[%emt 0:00:03]} Qxb2 {[%emt 0:00:20]} 18.
f5 {[%emt 0:01:39]} exf5 {[%emt 0:00:13]} 19. gxf5 {[%emt 0:00:02]} Bh5 {
[%emt 0:00:04]} 20. Rh3 {[%emt 0:04:22]} Bxe2 {[%emt 0:00:07]} 21. Kxe2 {
[%emt 0:00:08]} Qxc3 {[%emt 0:00:36]} 22. Qh1 {[%emt 0:00:59]} Qd3+ {[%emt 0:
00:57]} 23. Ke1 {[%emt 0:00:01]} Bb4 {[%emt 0:01:05]} 24. Rd1 {[%emt 0:00:55]}
Qxf5 {[%emt 0:00:04]} 25. Rh5 {[%emt 0:00:10]} Qd3 {[%emt 0:00:30]} 26. e4 {
[%emt 0:00:05]} c3 {[%emt 0:00:52]} 27. Rxh7 {[%emt 0:00:24]} cxd2+ {[%emt 0:
00:03]} 28. Rxd2 {[%emt 0:00:24]} Qxd2+ {[%emt 0:00:04]} 29. Kf1 {[%emt 0:00:
02]} Qe1# 0-1

[Event "European Rapid Championship 2021"]
[Site "Katowice"]
[Date "2021.12.19"]
[Round "7.2"]
[White "Kovalenko, Igor"]
[Black "Donchenko, Alexander"]
[Result "1/2-1/2"]
[ECO "D37"]
[WhiteElo "2649"]
[BlackElo "2535"]
[Annotator "ChessBase"]
[PlyCount "71"]
[EventDate "2021.12.18"]
[EventType "swiss"]
[EventCountry "POL"]
[SourceTitle "playchess.com"]
[Source "ChessBase"]
[SourceQuality "1"]
[TimeControl "900+10"]

1. d4 {[%emt 0:00:02]} Nf6 {[%emt 0:00:04]} 2. Nf3 {[%emt 0:00:02]} d5 {
[%emt 0:00:07]} 3. c4 {[%emt 0:00:01]} e6 {[%emt 0:00:08]} 4. Nc3 {[%emt 0:00:
01]} dxc4 {[%emt 0:00:04]} 5. e3 {[%emt 0:00:06]} a6 {[%emt 0:00:02]} 6. a4 {
[%emt 0:00:02]} c5 {[%emt 0:00:04]} 7. Bxc4 {[%emt 0:00:02]} Nc6 {[%emt 0:00:
02]} 8. O-O {[%emt 0:00:02]} Qc7 {[%emt 0:00:32]} 9. Qe2 {[%emt 0:00:21]} Be7 {
[%emt 0:00:13]} 10. b3 {[%emt 0:03:27]} O-O {[%emt 0:01:04]} 11. d5 {[%emt 0:
00:33]} exd5 {[%emt 0:00:05]} 12. Nxd5 {[%emt 0:00:01]} Nxd5 {[%emt 0:00:03]}
13. Bxd5 {[%emt 0:00:01]} Bg4 {[%emt 0:00:43]} 14. Bb2 {[%emt 0:00:18]} Rad8 {
[%emt 0:00:07]} 15. Rad1 {[%emt 0:02:07]} Nd4 {[%emt 0:01:22]} 16. exd4 {
[%emt 0:02:32]} Rxd5 {[%emt 0:00:03]} 17. dxc5 {[%emt 0:00:11]} Rxc5 {[%emt 0:
02:16]} 18. Rfe1 {[%emt 0:05:07]} Bd6 {[%emt 0:04:32]} 19. Rxd6 {[%emt 0:00:01]
} Qxd6 {[%emt 0:00:09]} 20. Ba3 {[%emt 0:00:02]} Bxf3 {[%emt 0:02:49]} 21. Bxc5
{[%emt 0:00:02]} Bxe2 {[%emt 0:00:05]} 22. Bxd6 {[%emt 0:00:01]} Re8 {[%emt 0:
00:01]} 23. Bb4 {[%emt 0:01:03]} Re6 {[%emt 0:00:03]} 24. f3 {[%emt 0:00:16]}
h5 {[%emt 0:00:23]} 25. Bc3 {[%emt 0:00:20]} Bd3 {[%emt 0:00:24]} 26. Rd1 {
[%emt 0:00:07]} Bc2 {[%emt 0:00:15]} 27. Rd8+ {[%emt 0:00:01]} Kh7 {[%emt 0:00:
02]} 28. Rd7 {[%emt 0:00:01]} Bxb3 {[%emt 0:00:07]} 29. Rxb7 {[%emt 0:00:03]}
Bd5 {[%emt 0:00:31]} 30. Rd7 {[%emt 0:00:08]} Bb3 {[%emt 0:00:06]} 31. a5 {
[%emt 0:00:10]} Kg6 {[%emt 0:00:13]} 32. h4 {[%emt 0:00:06]} Rc6 {[%emt 0:00:
05]} 33. Bd2 {[%emt 0:00:28]} Be6 {[%emt 0:00:17]} 34. Rb7 {[%emt 0:00:08]} Rc2
{[%emt 0:00:25]} 35. Bb4 {[%emt 0:00:13]} Bc4 {[%emt 0:00:50]} 36. Rc7 {
[%emt 0:00:32]} 1/2-1/2

[Event "European Rapid Championship 2021"]
[Site "Katowice"]
[Date "2021.12.19"]
[Round "7.2"]
[White "Zakrzewski, Marek"]
[Black "Malek, Jan"]
[Result "1-0"]
[ECO "A22"]
[WhiteElo "2239"]
[BlackElo "2029"]
[Annotator "NA"]
[PlyCount "70"]
[EventDate "2021.12.18"]
[EventType "swiss"]
[EventCountry "POL"]
[SourceTitle "playchess.com"]
[Source "ChessBase"]
[SourceQuality "1"]
[TimeControl "900+10"]

1. c4 {[%emt 0:00:04]} e5 {[%emt 0:00:08]} 2. Nc3 {[%emt 0:00:03]} Nf6 {
[%emt 0:00:01]} 3. e3 {[%emt 0:00:06]} Bb4 {[%emt 0:00:05]} 4. Nge2 {[%emt 0:
00:04]} O-O {[%emt 0:00:32]} 5. a3 {[%emt 0:00:04]} Be7 {[%emt 0:00:22]} 6. d4
{[%emt 0:00:50]} exd4 {[%emt 0:00:02]} 7. Nxd4 {[%emt 0:00:03]} d5 {[%emt 0:00:
01]} 8. Be2 {[%emt 0:01:13]} h6 {[%emt 0:00:34]} 9. O-O {[%emt 0:00:38]} c5 {
[%emt 0:00:01]} 10. Nf3 {[%emt 0:00:19]} Be6 {[%emt 0:00:02]} 11. b3 {[%emt 0:
03:05]} Nc6 {[%emt 0:00:44]} 12. Bb2 {[%emt 0:00:43]} a6 {[%emt 0:00:47]} 13.
Qc2 {[%emt 0:00:58]} Qc7 {[%emt 0:04:51]} 14. Rfd1 {[%emt 0:01:24]} Rfd8 {
[%emt 0:00:05]} 15. Rac1 {[%emt 0:02:05]} Rac8 {[%emt 0:00:59]} 16. cxd5 {
[%emt 0:00:17]} Nxd5 {[%emt 0:00:02]} 17. Ne4 {[%emt 0:00:04]} Bf5 {[%emt 0:02:
04]} 18. Bd3 {[%emt 0:01:32]} Bxe4 {[%emt 0:02:07]} 19. Bxe4 {[%emt 0:00:03]}
Nf6 {[%emt 0:00:00]} 20. Bf5 {[%emt 0:00:18]} Rxd1+ {[%emt 0:00:02]} 21. Rxd1 {
[%emt 0:00:02]} Rd8 {[%emt 0:00:02]} 22. Rd3 {[%emt 0:01:09]} Bf8 {[%emt 0:02:
03]} 23. Qd1 {[%emt 0:00:36]} Rxd3 {[%emt 0:00:04]} 24. Qxd3 {[%emt 0:00:02]}
Ne7 {[%emt 0:00:33]} 25. Bxf6 {[%emt 0:01:16]} gxf6 {[%emt 0:00:02]} 26. h4 {
[%emt 0:00:02]} b5 {[%emt 0:00:16]} 27. Be4 {[%emt 0:01:00]} c4 {[%emt 0:00:44]
} 28. bxc4 {[%emt 0:00:02]} bxc4 {[%emt 0:00:01]} 29. Qd4 {[%emt 0:00:24]} f5 {
[%emt 0:00:07]} 30. Bc2 {[%emt 0:00:14]} Bg7 {[%emt 0:00:06]} 31. Qd2 {[%emt 0:
00:19]} Bf6 {[%emt 0:00:43]} 32. g3 {[%emt 0:00:16]} Qc5 {[%emt 0:00:13]} 33.
a4 {[%emt 0:00:03]} c3 {[%emt 0:00:09]} 34. Qd3 {[%emt 0:00:04]} a5 {[%emt 0:
00:16]} 35. Nd4 {[%emt 0:00:02]} Bxd4 1-0

[Event "European Rapid Championship 2021"]
[Site "Katowice"]
[Date "2021.12.19"]
[Round "7.3"]
[White "Piesik, Piotr"]
[Black "Klekowski, Maciej"]
[Result "1-0"]
[ECO "B44"]
[WhiteElo "2342"]
[BlackElo "2528"]
[Annotator "ChessBase"]
[PlyCount "143"]
[EventDate "2021.12.18"]
[EventType "swiss"]
[EventCountry "POL"]
[SourceTitle "playchess.com"]
[Source "ChessBase"]
[SourceQuality "1"]
[TimeControl "900+10"]

1. e4 {[%emt 0:00:04]} c5 2. Nf3 {[%emt 0:00:04]} Nc6 {[%emt 0:00:04]} 3. d4 {
[%emt 0:00:02]} cxd4 {[%emt 0:00:01]} 4. Nxd4 {[%emt 0:00:02]} e6 {[%emt 0:00:
15]} 5. Nb5 {[%emt 0:01:09]} d6 {[%emt 0:00:03]} 6. c4 {[%emt 0:00:10]} a6 {
[%emt 0:00:14]} 7. N5a3 {[%emt 0:00:56]} Nf6 {[%emt 0:00:01]} 8. Nc3 {[%emt 0:
00:01]} b6 {[%emt 0:00:16]} 9. Be2 {[%emt 0:00:08]} Bb7 10. O-O {[%emt 0:00:09]
} Be7 {[%emt 0:00:28]} 11. Be3 {[%emt 0:00:09]} O-O {[%emt 0:01:52]} 12. Qd2 {
[%emt 0:00:28]} Rc8 {[%emt 0:00:59]} 13. Rac1 {[%emt 0:00:06]} Ne5 {[%emt 0:00:
26]} 14. f3 {[%emt 0:00:09]} Ned7 {[%emt 0:01:04]} 15. Rfd1 {[%emt 0:00:28]}
Qc7 {[%emt 0:00:01]} 16. Bf1 {[%emt 0:01:05]} Qb8 {[%emt 0:00:26]} 17. Qf2 {
[%emt 0:01:03]} Bd8 {[%emt 0:00:02]} 18. Nc2 {[%emt 0:01:41]} Bc7 {[%emt 0:00:
07]} 19. g3 {[%emt 0:00:16]} Rfe8 {[%emt 0:01:41]} 20. Nd4 {[%emt 0:00:32]} Qa8
{[%emt 0:00:10]} 21. Bg2 {[%emt 0:01:22]} Ne5 {[%emt 0:04:18]} 22. b3 {[%emt 0:
00:33]} d5 {[%emt 0:00:01]} 23. exd5 {[%emt 0:04:00]} exd5 {[%emt 0:00:01]} 24.
Nxd5 {[%emt 0:00:31]} Bxd5 {[%emt 0:02:31]} 25. cxd5 {[%emt 0:00:02]} Nxd5 {
[%emt 0:00:01]} 26. Nf5 {[%emt 0:01:10]} Nxe3 {[%emt 0:03:10]} 27. Nxe3 {
[%emt 0:00:01]} Qb8 {[%emt 0:00:29]} 28. f4 {[%emt 0:00:05]} Ng6 {[%emt 0:00:
04]} 29. Nd5 {[%emt 0:00:25]} Bd8 {[%emt 0:00:28]} 30. Rxc8 {[%emt 0:00:36]}
Qxc8 {[%emt 0:00:01]} 31. Nxb6 {[%emt 0:00:15]} Bxb6 {[%emt 0:00:18]} 32. Qxb6
{[%emt 0:00:02]} Nf8 {[%emt 0:00:11]} 33. Qc6 {[%emt 0:00:14]} Qxc6 {[%emt 0:
00:33]} 34. Bxc6 {[%emt 0:00:02]} Re2 {[%emt 0:00:02]} 35. a4 {[%emt 0:00:08]}
Rb2 {[%emt 0:00:05]} 36. Bd5 {[%emt 0:00:05]} h5 {[%emt 0:00:11]} 37. h4 {
[%emt 0:00:36]} Nh7 {[%emt 0:00:09]} 38. Bc4 {[%emt 0:00:19]} Nf6 {[%emt 0:00:
01]} 39. Rd8+ {[%emt 0:00:10]} Kh7 {[%emt 0:00:01]} 40. Bxf7 {[%emt 0:00:02]}
Ne4 {[%emt 0:00:15]} 41. Rd3 {[%emt 0:00:05]} g6 {[%emt 0:00:26]} 42. Re3 {
[%emt 0:00:09]} Nf6 {[%emt 0:00:07]} 43. Bc4 {[%emt 0:00:11]} a5 {[%emt 0:00:
16]} 44. Re5 {[%emt 0:00:20]} Kg7 {[%emt 0:00:21]} 45. Rxa5 {[%emt 0:00:11]}
Ne4 {[%emt 0:00:01]} 46. Ra7+ {[%emt 0:00:06]} Kf8 {[%emt 0:00:01]} 47. f5 {
[%emt 0:00:22]} gxf5 {[%emt 0:00:08]} 48. Rf7+ {[%emt 0:00:01]} Ke8 {[%emt 0:
00:01]} 49. Rxf5 {[%emt 0:00:06]} Kd7 {[%emt 0:00:13]} 50. Rxh5 {[%emt 0:00:16]
} Nxg3 {[%emt 0:00:01]} 51. Re5 {[%emt 0:00:36]} Kd6 {[%emt 0:00:05]} 52. Re6+
{[%emt 0:00:03]} Kc5 {[%emt 0:00:03]} 53. h5 {[%emt 0:00:02]} Nxh5 {[%emt 0:01:
06]} 54. Re5+ {[%emt 0:00:01]} Kd4 {[%emt 0:00:04]} 55. Rxh5 {[%emt 0:00:01]}
Ke3 {[%emt 0:00:01]} 56. Rh2 {[%emt 0:00:13]} Rb1+ {[%emt 0:00:00]} 57. Kg2 {
[%emt 0:00:01]} Kf4 {[%emt 0:00:04]} 58. Rh4+ {[%emt 0:00:05]} Ke3 {[%emt 0:00:
01]} 59. Rh8 {[%emt 0:00:14]} Kf4 {[%emt 0:00:03]} 60. Rf8+ {[%emt 0:00:02]}
Ke3 {[%emt 0:00:02]} 61. Re8+ {[%emt 0:00:04]} Kd4 {[%emt 0:00:05]} 62. Kf3 {
[%emt 0:00:13]} Rh1 {[%emt 0:00:01]} 63. a5 {[%emt 0:00:14]} Kc5 {[%emt 0:00:
04]} 64. a6 {[%emt 0:00:02]} Kb6 {[%emt 0:00:01]} 65. Re6+ {[%emt 0:00:01]} Kc7
{[%emt 0:00:25]} 66. Ke4 {[%emt 0:00:13]} Ra1 {[%emt 0:00:50]} 67. Kd4 {
[%emt 0:00:05]} Kb8 {[%emt 0:00:02]} 68. Re7 {[%emt 0:00:07]} Ra5 {[%emt 0:00:
13]} 69. b4 {[%emt 0:00:07]} Ra1 {[%emt 0:00:03]} 70. Kc5 {[%emt 0:00:02]} Rc1
{[%emt 0:00:20]} 71. Kb6 {[%emt 0:00:11]} Kc8 {[%emt 0:00:01]} 72. Bb5 {
[%emt 0:00:19]} 1-0

[Event "European Rapid Championship 2021"]
[Site "Katowice"]
[Date "2021.12.19"]
[Round "7.3"]
[White "Walter, Szymon"]
[Black "Grzesik, Gracjan"]
[Result "0-1"]
[ECO "B23"]
[WhiteElo "2203"]
[BlackElo "1992"]
[Annotator "NA"]
[PlyCount "96"]
[EventDate "2021.12.18"]
[EventType "swiss"]
[EventCountry "POL"]
[SourceTitle "playchess.com"]
[Source "ChessBase"]
[SourceQuality "1"]
[TimeControl "900+10"]

1. e4 {[%emt 0:00:02]} c5 {[%emt 0:00:01]} 2. Nc3 {[%emt 0:00:05]} Nc6 {
[%emt 0:00:07]} 3. f4 {[%emt 0:00:03]} g6 {[%emt 0:00:29]} 4. Nf3 {[%emt 0:00:
03]} Bg7 {[%emt 0:00:01]} 5. Bb5 {[%emt 0:00:03]} Nd4 {[%emt 0:00:34]} 6. O-O {
[%emt 0:00:08]} a6 {[%emt 0:00:33]} 7. Bc4 {[%emt 0:00:17]} e6 {[%emt 0:00:28]}
8. d3 {[%emt 0:00:11]} b5 {[%emt 0:00:48]} 9. Bb3 {[%emt 0:00:03]} d6 {[%emt 0:
00:38]} 10. Nxd4 {[%emt 0:00:15]} Bxd4+ {[%emt 0:00:26]} 11. Kh1 {[%emt 0:00:
02]} Ne7 {[%emt 0:00:24]} 12. f5 {[%emt 0:00:29]} gxf5 {[%emt 0:02:08]} 13.
exf5 {[%emt 0:00:09]} d5 {[%emt 0:03:19]} 14. Ne2 {[%emt 0:01:33]} Nxf5 {
[%emt 0:01:56]} 15. Rxf5 {[%emt 0:00:12]} exf5 {[%emt 0:00:07]} 16. Nxd4 {
[%emt 0:00:04]} cxd4 {[%emt 0:00:05]} 17. Qf3 {[%emt 0:00:21]} Be6 {[%emt 0:00:
11]} 18. Bf4 {[%emt 0:00:07]} Qd7 {[%emt 0:00:55]} 19. Re1 {[%emt 0:01:15]}
O-O-O {[%emt 0:00:32]} 20. Qf2 {[%emt 0:00:23]} Qa7 {[%emt 0:01:22]} 21. Be5 {
[%emt 0:01:22]} Rhg8 {[%emt 0:00:24]} 22. Bxd4 {[%emt 0:00:03]} Qb7 {[%emt 0:
00:24]} 23. a4 {[%emt 0:01:27]} b4 {[%emt 0:02:43]} 24. Bb6 {[%emt 0:05:10]}
Rd6 {[%emt 0:00:17]} 25. Bc5 {[%emt 0:00:19]} Rd7 {[%emt 0:00:16]} 26. Qd4 {
[%emt 0:00:23]} Rg4 {[%emt 0:00:10]} 27. Qf2 {[%emt 0:02:02]} Rg6 {[%emt 0:00:
10]} 28. Bd4 {[%emt 0:00:29]} Rd8 {[%emt 0:00:06]} 29. a5 {[%emt 0:00:23]} Rdg8
{[%emt 0:00:12]} 30. g3 {[%emt 0:00:06]} h5 {[%emt 0:00:07]} 31. Ba4 {[%emt 0:
02:23]} Rg4 {[%emt 0:00:13]} 32. c3 {[%emt 0:00:12]} b3 {[%emt 0:00:12]} 33.
Qe3 {[%emt 0:00:21]} h4 {[%emt 0:00:08]} 34. gxh4 {[%emt 0:00:03]} Rg2 {
[%emt 0:00:13]} 35. Qe5 {[%emt 0:00:21]} f4 {[%emt 0:00:10]} 36. Qd6 {[%emt 0:
00:08]} f3 {[%emt 0:00:09]} 37. Rf1 {[%emt 0:00:12]} f2 {[%emt 0:00:10]} 38.
Bxf2 {[%emt 0:00:02]} Bh3 {[%emt 0:00:10]} 39. Bd4 {[%emt 0:00:18]} Rxb2 {
[%emt 0:00:08]} 40. Qc5+ {[%emt 0:00:02]} Kb8 {[%emt 0:00:07]} 41. Be5+ {
[%emt 0:00:14]} Ka8 {[%emt 0:00:02]} 42. Bc6 {[%emt 0:00:05]} Bg2+ {[%emt 0:00:
06]} 43. Kg1 {[%emt 0:00:01]} Bf3+ {[%emt 0:00:21]} 44. Bg3 {[%emt 0:00:11]}
Rg2+ {[%emt 0:00:11]} 45. Kh1 {[%emt 0:00:01]} R2xg3+ {[%emt 0:00:06]} 46. Rxf3
{[%emt 0:00:01]} Rg1+ {[%emt 0:00:03]} 47. Qxg1 {[%emt 0:00:02]} Rxg1+ {
[%emt 0:00:01]} 48. Kxg1 {[%emt 0:00:02]} Qxc6 {[%emt 0:00:01]} 0-1